bitfinex/quotes_ETHUSD_20240604
["timestamp","ask_amount","ask_price","bid_price","bid_amount"]
[1717525726867,2.615,3824.1,3823.2,0.505504]
[1717525729602,2.615,3824.1,3822.9,2.4394]
[1717525729988,2.2761,3824.2,3823.5,2.61537]
[1717525731129,2.61461,3824.7,3823.6,2.3416]
[1717525731985,2.61461,3824.7,3823.9,2.6151]
[1717525732191,2.3196,3824.9,3824.1,2.61496]
[1717525733131,2.3196,3824.9,3824.3,2.61481]
[1717525733421,2.61442,3825.0,3824.3,2.61481]
[1717525740428,2.61454,3824.8,3824.2,4.982]
[1717525741027,2.61454,3824.8,3824.2,5.529767]
[1717525741394,2.61454,3824.8,3824.2,2.914867]
[1717525741603,2.61454,3824.8,3823.9,2.61508]
[1717525741793,2.61467,3824.6,3823.9,2.61508]
[1717525743987,2.61481,3824.4,3823.6,2.6153]
[1717525747736,2.61481,3824.4,3823.8,2.61516]
[1717525748032,2.61481,3824.4,3823.9,0.261516]
[1717525748933,4.93113,3824.7,3824.0,2.61506]
[1717525750040,4.93113,3824.7,3823.4,2.4084]
[1717525750041,2.61474,3824.5,3823.7,2.61521]
[1717525750441,1.869,3823.9,3823.1,2.61563]
[1717525750641,2.4827,3824.0,3823.1,2.61563]
[1717525750843,2.4827,3824.0,3823.1,3.106183]
[1717525751208,2.4827,3824.0,3823.1,2.61563]
[1717525757137,2.4827,3824.0,3822.8,2.2899]
[1717525757356,2.61501,3824.1,3823.4,2.371]
[1717525757526,2.61501,3824.1,3823.5,2.61539]
[1717525757721,1.56947936,3824.3,3823.5,3.114029]
[1717525758052,2.13447271,3824.3,3823.5,3.114029]
[1717525758617,2.13447271,3824.3,3823.4,2.371]
[1717525758618,4.18444936,3824.2,3823.4,2.371]
[1717525758840,2.13447271,3824.1,3823.4,2.371]
[1717525759049,1.56947936,3824.0,3823.4,2.371]
[1717525759208,2.13447271,3824.1,3823.4,2.371]
[1717525759413,2.13447271,3824.1,3823.2,2.61558]
[1717525759613,2.61508,3824.0,3823.0,2.4995]
[1717525759829,2.61508,3824.0,3823.0,3.011029]
[1717525759830,4.74957973,3824.0,3823.0,3.011029]
[1717525760058,4.18455936,3824.0,3823.0,3.011029]
[1717525760573,2.61508,3824.0,3823.1,2.61565]
[1717525762255,7.3,3824.2,3823.4,2.4246]
[1717525763246,7.3,3824.2,3823.3,2.6155]
[1717525764231,8.86947936,3824.2,3823.3,2.6155]
[1717525764469,7.3,3824.2,3823.3,2.6155]
[1717525764683,7.3,3824.2,3823.3,3.1706629]
[1717525765345,7.3,3824.2,3823.4,2.4668]
[1717525766180,7.3,3824.2,3824.0,2.4668]
[1717525766360,1.56942283,3824.6,3824.0,2.4668]
[1717525768247,1.56942283,3824.6,3823.9,2.61508]
[1717525768581,1.56942283,3824.6,3824.0,0.497088]
[1717525769233,7.3,3824.8,3824.1,2.3558]
[1717525769640,7.3,3824.8,3824.5,2.61469]
[1717525770896,19.57,3824.9,3824.5,2.61469]
[1717525771587,19.57,3824.9,3824.8,1.869]
[1717525771733,7.3,3825.4,3824.8,4.1263]
[1717525771937,7.3,3825.4,3824.9,0.41263]
[1717525772738,7.3,3825.4,3825.2,2.6142]
[1717525777474,12.36,3825.8,3825.2,2.6142]
[1717525777475,7.3,3826.0,3825.2,2.6142]
[1717525779302,7.3,3826.0,3825.4,2.61403]
[1717525780205,8.527352,3826.0,3825.4,2.61403]
[1717525781190,11.141082,3826.0,3825.1,2.61429]
[1717525781416,2.44,3825.9,3825.1,2.61429]
[1717525781919,2.61384,3825.8,3824.8,2.61449]
[1717525782074,2.614,3825.6,3824.8,2.61449]
[1717525782514,2.61413,3825.4,3824.5,2.61469]
[1717525782676,2.61438,3825.0,3824.2,2.61492]
[1717525782881,0.261438,3824.9,3824.2,2.61492]
[1717525783189,2.61438,3825.0,3824.2,2.61492]
[1717525784932,2.61452,3824.8,3823.9,2.61508]
[1717525785271,2.61467,3824.6,3823.9,2.61508]
[1717525786169,5.00618,3824.9,3823.9,2.61508]
[1717525786372,5.00618,3824.9,3824.1,2.61496]
[1717525787609,5.00618,3824.9,3823.9,0.261508]
[1717525787610,7.3,3825.3,3823.9,0.261508]
[1717525787790,7.3,3825.3,3824.7,2.61457]
[1717525787791,9.7704,3825.3,3824.7,2.61457]
[1717525787991,7.3,3825.3,3824.7,2.61457]
[1717525788204,7.3,3825.3,3824.7,3.062927]
[1717525789888,7.3,3825.3,3824.4,2.61478]
[1717525790914,2.2786,3825.1,3824.4,2.61478]
[1717525791120,2.2786,3825.1,3824.0,2.61499]
[1717525792842,2.2786,3825.1,3824.2,2.61486]
[1717525793521,2.61438,3825.0,3824.2,2.61486]
[1717525795802,2.2786,3825.1,3824.5,2.61469]
[1717525796597,2.2786,3825.1,3824.7,2.61454]
[1717525802552,7.3,3825.6,3824.9,2.6144]
[1717525804104,7.3,3825.6,3825.2,2.61423]
[1717525804404,2.4471,3825.7,3825.2,2.61423]
[1717525807540,12.36,3826.0,3825.2,0.261423]
[1717525807721,12.36,3826.0,3825.2,2.3348]
[1717525808122,12.36,3826.0,3825.6,2.61392]
[1717525808625,12.36,3826.0,3825.8,2.61378]
[1717525809732,22.0136,3826.2,3825.5,2.614]
[1717525810105,2.4198,3826.0,3825.2,2.61423]
[1717525810313,2.4198,3825.8,3824.8,2.61445]
[1717525810664,2.460344,3825.9,3824.5,2.61469]
[1717525810665,2.4482,3825.4,3824.5,2.61469]
[1717525811782,2.61419,3825.3,3824.5,2.61469]
[1717525812581,2.2844,3825.7,3824.2,2.61492]
[1717525812729,2.2844,3824.9,3823.8,2.61514]
[1717525813746,2.61456,3824.8,3823.8,2.61514]
[1717525815577,2.61473,3824.5,3823.4,2.61542]
[1717525815729,7.3,3825.1,3823.4,2.61542]
[1717525815730,2.61489,3824.3,3823.4,2.61542]
[1717525815932,0.489929,3824.2,3823.4,2.61542]
[1717525817229,2.61503,3824.1,3823.0,2.61569]
[1717525817465,2.4716,3824.0,3823.0,2.61569]
[1717525818044,2.61514,3823.9,3823.0,2.61569]
[1717525818242,2.61514,3823.9,3822.8,0.40951927]
[1717525819277,2.61514,3823.9,3822.6,2.61596]
[1717525819478,2.61532,3823.7,3822.6,2.61596]
[1717525821646,2.4684,3823.6,3822.3,0.40970507]
[1717525822678,2.61561,3823.2,3822.4,2.61615]
[1717525822886,2.61498,3824.2,3822.3,0.40970507]
[1717525822887,2.6158,3823.0,3822.3,0.40970507]
[1717525823098,0.50842,3822.9,3822.3,0.40970507]
[1717525823238,0.50842,3822.9,3821.9,2.61645]
[1717525823434,2.6158,3823.0,3821.9,2.61645]
[1717525824772,2.61593,3822.8,3821.9,2.61645]
[1717525825381,2.4684,3823.1,3822.1,2.61629]
[1717525825382,5.08408,3823.1,3822.1,2.61629]
[1717525825562,5.08408,3823.1,3822.3,2.61616]
[1717525825770,12.29797,3823.4,3822.3,2.61616]
[1717525826082,12.29797,3823.4,3822.5,2.61606]
[1717525826942,12.29797,3823.4,3822.7,2.6159]
[1717525827173,4.99797,3823.4,3822.7,2.6159]
[1717525828143,2.3825,3823.4,3822.1,2.61634]
[1717525828340,0.23825,3823.3,3822.1,2.61634]
[1717525829275,0.23825,3823.3,3822.6,2.61597]
[1717525829276,2.61556,3823.3,3822.6,2.61597]
[1717525829505,2.3825,3823.4,3822.6,2.61597]
[1717525830487,12.36,3823.7,3822.8,2.61582]
[1717525831279,14.97532,3823.7,3822.8,2.61582]
[1717525831691,2.61547,3823.4,3822.5,2.61607]
[1717525831884,2.61547,3823.4,3822.5,3.110347]
[1717525832187,2.61547,3823.4,3822.5,2.61607]
[1717525832340,2.61561,3823.2,3822.2,2.61628]
[1717525834778,2.61578,3823.0,3821.9,2.61647]
[1717525835091,2.2748,3823.3,3821.6,2.61668]
[1717525835092,2.61609,3822.5,3821.6,2.61668]
[1717525835680,5.02969,3822.5,3821.6,2.61668]
[1717525838293,2.4136,3822.5,3821.3,2.6169]
[1717525838506,2.61642,3822.1,3820.9,2.61711]
[1717525839610,2.61656,3821.8,3820.9,2.61711]
[1717525839818,2.61656,3821.8,3820.9,3.1067023]
[1717525841022,2.61671,3821.6,3820.9,2.61711]
[1717525841909,2.61671,3821.6,3820.6,2.61737]
[1717525842497,2.6169,3821.4,3820.6,2.61737]
[1717525842845,2.6169,3821.4,3820.2,1.869]
[1717525842846,2.6169,3821.4,3820.3,2.61759]
[1717525842997,3.10476,3821.4,3820.3,2.61759]
[1717525843692,2.61704,3821.2,3820.3,2.61759]
[1717525845545,2.61704,3821.2,3820.6,2.61738]
[1717525846297,7.3,3821.4,3820.8,2.6172]
[1717525847247,7.3,3821.4,3820.8,2.87892]
[1717525847415,7.3,3821.4,3821.0,2.61707]
[1717525850572,2.2617,3821.7,3821.0,2.61707]
[1717525851482,7.3,3821.9,3821.2,2.61691]
[1717525852183,7.3,3821.9,3821.4,2.61679]
[1717525852396,2.4256,3822.2,3821.6,2.61666]
[1717525852905,7.3,3822.4,3821.6,2.61666]
[1717525856263,7.3,3822.4,3821.8,2.61653]
[1717525856463,5.06001,3822.5,3821.8,2.61653]
[1717525856464,2.4439,3822.5,3821.8,2.61653]
[1717525856759,2.4439,3822.5,3822.0,2.6164]
[1717525856982,26.87,3822.7,3822.0,2.6164]
[1717525857174,26.87,3822.7,3822.0,2.87804]
[1717525857876,26.87,3822.7,3822.2,2.61624]
[1717525858067,4.18605135,3823.1,3822.0,0.26164]
[1717525858068,11.48605135,3823.1,3822.0,0.26164]
[1717525858492,9.9157,3823.1,3822.0,0.26164]
[1717525858803,7.3,3823.1,3822.4,2.61609]
[1717525859302,7.3,3823.1,3822.6,2.61597]
[1717525859814,7.3,3823.1,3822.9,2.6158]
[1717525862109,7.3,3823.1,3822.6,2.61601]
[1717525862284,31.93,3823.5,3822.6,2.61601]
[1717525862971,7.3,3823.6,3823.2,2.61556]
[1717525863167,1.56983344,3824.0,3823.4,2.61545]
[1717525863398,7.3,3824.1,3823.4,2.61545]
[1717525866903,7.3,3824.1,3823.6,2.61528]
[1717525867771,7.3,3824.1,3823.3,2.61552]
[1717525867975,2.227491,3824.0,3823.3,2.61552]
[1717525868175,4.842561,3824.0,3823.3,2.61552]
[1717525868375,2.61524,3823.8,3823.0,2.61574]
[1717525869010,2.227491,3824.0,3822.7,2.61592]
[1717525869011,2.61535,3823.6,3822.7,2.61592]
[1717525869589,2.61535,3823.6,3822.9,2.61577]
[1717525869826,3.113535,3823.6,3822.9,2.61577]
[1717525870332,2.61552,3823.4,3822.6,2.61599]
[1717525870702,0.498185,3823.6,3822.9,2.6158]
[1717525870889,4.98177,3823.7,3822.9,2.6158]
[1717525874622,2.61543,3823.5,3822.6,2.61599]
[1717525874931,2.61543,3823.5,3822.6,2.58169]
[1717525876739,2.61543,3823.5,3822.8,2.61584]
[1717525878024,2.61558,3823.3,3822.4,2.61613]
[1717525878231,2.61558,3823.3,3822.4,0.261613]
[1717525878436,2.61558,3823.3,3822.0,2.13064]
[1717525879214,2.61558,3823.3,3822.6,2.61596]
[1717525879909,2.61558,3823.3,3822.3,2.61619]
[1717525880110,2.61571,3823.1,3822.3,2.61619]
[1717525880332,0.261571,3823.0,3822.3,2.61619]
[1717525881044,5.09564,3822.9,3822.3,2.61619]
[1717525882944,2.4798,3822.9,3822.3,2.61619]
[1717525884345,2.4798,3822.9,3822.5,2.61606]
[1717525884905,5.10165,3823.2,3822.5,2.61606]
[1717525885935,2.486,3823.2,3822.5,2.61606]
[1717525886145,2.486,3823.2,3822.5,2.877666]
[1717525886639,2.486,3823.2,3822.5,2.61606]
[1717525886867,2.61585,3822.9,3822.2,2.61626]
[1717525887021,2.61585,3822.9,3821.9,2.61645]
[1717525887225,2.4174,3822.8,3822.1,2.61633]
[1717525891182,2.61595,3822.7,3822.1,2.61633]
[1717525892544,2.4174,3822.8,3822.1,2.61633]
[1717525892768,2.4174,3822.8,3822.3,2.61619]
[1717525897476,1.56988265,3823.1,3822.9,2.61581]
[1717525897658,2.13499739,3823.4,3823.2,2.6156]
[1717525897826,7.3,3823.5,3823.2,2.6156]
[1717525900376,7.3,3823.5,3823.0,0.08396551]
[1717525900377,19.66,3824.1,3823.7,2.61523]
[1717525902973,19.66,3824.1,3823.3,2.61549]
[1717525903164,2.460515,3824.0,3823.3,2.61549]
[1717525904209,5.075605,3824.0,3823.3,2.61549]
[1717525905892,2.4646,3823.9,3823.3,2.61549]
[1717525910726,2.4646,3823.9,3823.0,0.08396551]
[1717525910886,7.3,3824.1,3823.7,2.61522]
[1717525912119,4.94649,3824.3,3823.7,2.61522]
[1717525912305,7.59679545,3824.3,3823.7,2.61522]
[1717525915636,7.3,3824.5,3823.9,2.61508]
[1717525921510,2.61493,3824.2,3823.4,0.08395673]
[1717525922316,2.6151,3824.0,3823.4,0.08395673]
[1717525924424,4.18466032,3824.0,3823.4,0.08395673]
[1717525924631,5.1056,3823.8,3823.4,0.08395673]
[1717525926212,2.61499,3824.1,3823.4,0.08395673]
[1717525927716,1.56956032,3824.0,3823.4,0.08395673]
[1717525927915,0.56499516,3824.0,3823.4,0.08395673]
[1717525928127,0.47495455,3823.9,3823.4,0.08395673]
[1717525929970,2.04451487,3823.9,3823.4,0.08395673]
[1717525930385,0.47495455,3823.9,3823.4,0.08395673]
[1717525931457,1.56956032,3824.2,3823.4,2.69936673]
[1717525931643,1.56956032,3824.2,3823.5,0.08395453]
[1717525931847,3.04389312,3824.3,3823.6,2.61532]
[1717525932061,0.56499312,3824.3,3823.6,2.61532]
[1717525932372,2.61481,3824.4,3823.6,2.61532]
[1717525932675,8.86928364,3824.5,3823.8,2.61519]
[1717525933449,7.3,3824.5,3823.8,2.61519]
[1717525935487,9.91477,3824.5,3823.8,2.61519]
[1717525935687,4.18401058,3824.5,3823.9,0.08394575]
[1717525935869,2.61477,3824.5,3823.9,0.08394575]
[1717525936090,0.41840106,3824.4,3823.9,0.08394575]
[1717525938349,2.61477,3824.5,3823.9,0.08394575]
[1717525941278,1.56929892,3824.7,3824.0,2.61505]
[1717525941459,0.56491853,3824.7,3824.0,2.61505]
[1717525941886,13.77454892,3824.8,3824.0,2.61505]
[1717525942054,0.56491184,3824.7,3824.0,2.61505]
[1717525942258,13.77454892,3824.8,3824.0,2.61505]
[1717525942800,13.64640452,3824.8,3824.0,2.61505]
[1717525944499,2.61466,3824.6,3824.0,2.61505]
[1717525954277,4.05730195,3824.6,3823.9,0.08394575]
[1717525954679,4.05730195,3824.6,3823.9,2.69904575]
[1717525954923,4.05730195,3824.6,3823.9,3.47904575]
[1717525956201,2.61466,3824.6,3823.9,3.47904575]
[1717525956394,2.61466,3824.6,3824.1,0.78]
[1717525956594,2.61466,3824.6,3823.9,3.47904575]
[1717525957198,1.56920388,3824.7,3824.1,2.61497]
[1717525957397,2.13411564,3824.7,3824.1,2.61497]
[1717525957942,2.13409572,3824.7,3824.1,2.61497]
[1717525958151,2.13409572,3824.7,3824.1,3.39497]
[1717525958439,9.4625556,3824.8,3824.1,3.98201158]
[1717525958601,9.4625556,3824.8,3824.1,3.39497]
[1717525958940,11.03174363,3824.8,3824.1,3.39497]
[1717525960337,0.5648783,3824.7,3824.1,3.39497]
[1717525961296,2.13406633,3824.7,3824.1,3.39497]
[1717525961737,0.5648783,3824.7,3824.5,0.78]
[1717525962042,2.13406633,3824.7,3824.5,0.78]
[1717525962242,0.5648783,3824.7,3824.5,0.78]
[1717525962765,0.5648783,3824.7,3824.5,3.734172]
[1717525963058,7.3,3824.8,3824.7,2.61458]
[1717525963348,7.3,3824.8,3824.7,3.39458]
[1717525963547,7.3,3824.8,3824.7,2.61458]
[1717525963700,7.3,3824.8,3824.7,3.39458]
[1717525965346,19.57,3825.0,3824.7,3.39458]
[1717525965854,19.57,3825.0,3824.7,2.61458]
[1717525966034,1.957,3824.9,3824.4,2.61476]
[1717525966902,0.56487553,3824.9,3824.4,2.61476]
[1717525967104,21.13887971,3825.0,3824.4,2.61476]
[1717525967434,19.57,3825.0,3824.4,2.61476]
[1717525967636,19.57,3825.0,3824.5,2.4637]
[1717525968201,19.57,3825.0,3824.6,2.61461]
[1717525968439,19.57,3825.0,3824.7,0.08392819]
[1717525971016,1.56896526,3825.2,3824.7,0.08392819]
[1717525971654,2.41678355,3825.2,3824.7,0.08392819]
[1717525972925,5.03106355,3825.2,3824.7,0.08392819]
[1717525973247,3.46209829,3825.2,3824.7,0.08392819]
[1717525973645,2.61428,3825.2,3824.7,0.08392819]
[1717525976509,8.86892438,3825.4,3824.7,0.08392819]
[1717525976705,0.56481277,3825.3,3824.7,2.69847819]
[1717525976909,8.86892438,3825.4,3824.7,2.69847819]
[1717525978207,8.8688896,3825.4,3824.7,2.69847819]
[1717525978855,8.8688896,3825.4,3824.9,2.61441]
[1717525979020,2.3834,3825.6,3824.9,2.61441]
[1717525979021,1.5688896,3825.6,3824.9,2.61441]
[1717525979225,1.5688896,3825.6,3825.0,0.08392161]
[1717525979551,2.61386,3825.8,3825.1,2.6143]
[1717525979552,0.5647477,3825.7,3825.1,2.6143]
[1717525979923,2.61386,3825.8,3825.1,2.6143]
[1717525982359,0.77317113,3825.8,3825.4,0.08391284]
[1717525982714,9.91379,3825.9,3825.4,0.08391284]
[1717525982945,1.5688896,3826.1,3825.4,0.08391284]
[1717525983755,2.61371,3826.0,3825.4,0.08391284]
[1717525984862,11.4823896,3826.3,3825.5,5.0222]
[1717525985172,0.56471488,3826.2,3825.5,5.0222]
[1717525985462,9.9135,3826.3,3825.5,5.53281128]
[1717525985759,9.9135,3826.3,3825.5,5.0222]
[1717525986618,9.9135,3826.3,3825.6,0.08390845]
[1717525986815,9.9135,3826.3,3825.7,2.61388]
[1717525987046,2.6135,3826.3,3825.7,2.61388]
[1717525987257,2.61332,3826.6,3825.8,0.08390406]
[1717525987820,2.61332,3826.6,3825.9,2.61375]
[1717525988020,2.61332,3826.6,3826.0,0.86289968]
[1717525990853,7.3,3826.7,3826.2,0.779]
[1717525991085,7.3,3826.7,3826.1,4.97757]
[1717525991672,19.57,3826.8,3826.2,0.779]
[1717525992768,2.61321,3826.7,3826.1,4.97757]
[1717525992944,2.61321,3826.7,3826.1,2.364]
[1717525993124,2.61321,3826.7,3826.0,0.08389968]
[1717525993326,2.61321,3826.7,3826.1,0.08389748]
[1717525995964,2.57361116,3826.7,3826.1,0.08389748]
[1717525996784,19.57,3826.8,3826.4,3.1984]
[1717525996961,19.57,3826.8,3826.6,0.779]
[1717525997130,2.61305,3827.0,3826.6,0.779]
[1717525997334,2.61305,3827.0,3826.5,0.31984]
[1717525997732,2.61305,3827.0,3826.5,1.09884]
[1717525997970,7.3,3827.1,3826.5,0.31984]
[1717525999341,22.18283,3827.3,3826.6,0.35781052]
[1717525999562,22.18283,3827.3,3826.7,0.08388433]
[1717526002960,19.57,3827.3,3826.7,0.08388433]
[1717526003333,10.3,3827.5,3826.7,0.08388433]
[1717526004749,2.61274,3827.4,3826.7,0.08388433]
[1717526005672,2.61274,3827.4,3826.7,0.65491216]
[1717526007083,7.3,3827.5,3826.8,2.61314]
[1717526007375,7.3,3827.5,3826.9,0.08387995]
[1717526009240,2.61256,3827.7,3826.9,0.08387995]
[1717526009665,2.61256,3827.7,3827.0,2.2636]
[1717526011903,2.6127,3827.5,3826.9,0.08387995]
[1717526012183,2.6127,3827.5,3826.9,0.63684473]
[1717526017774,4.18072727,3827.5,3826.9,0.08387995]
[1717526017976,2.61281,3827.3,3826.9,0.08387995]
[1717526018847,2.61295,3827.1,3826.9,0.08387995]
[1717526020097,0.779,3827.0,3826.9,0.08387995]
[1717526020263,1.51249773,3827.0,3826.9,0.08387995]
[1717526020603,2.61338,3826.5,3825.9,2.61372]
[1717526020784,2.61338,3826.5,3825.8,2.3045]
[1717526020785,2.61338,3826.5,3826.0,0.08389968]
[1717526021897,2.61352,3826.3,3826.0,0.08389968]
[1717526024593,3.39262,3826.1,3826.0,0.08389968]
[1717526024807,3.39262,3826.1,3824.7,4.92536]
[1717526024808,2.61397,3825.6,3824.7,4.92536]
[1717526024967,2.61416,3825.4,3824.8,0.083926]
[1717526025150,2.61444,3824.9,3824.8,0.083926]
[1717526026193,2.61465,3824.6,3823.9,2.3108]
[1717526026522,0.779,3824.5,3823.9,2.3108]
[1717526026799,0.779,3824.5,3823.1,0.54159336]
[1717526026800,0.779,3824.1,3823.5,2.3108]
[1717526027012,0.779,3824.1,3823.6,0.49263]
[1717526027149,0.779,3824.3,3823.6,0.49263]
[1717526027891,2.61485,3824.4,3823.6,0.49263]
[1717526028254,2.61499,3824.1,3823.6,0.49263]
[1717526029065,2.61479,3824.4,3823.6,0.49263]
[1717526029295,2.61479,3824.4,3823.7,0.280343]
[1717526030773,2.61498,3824.2,3823.7,0.280343]
[1717526037887,2.61511,3824.0,3823.7,0.280343]
[1717526038108,2.61511,3824.0,3823.5,2.3108]
[1717526038308,2.61524,3823.8,3823.5,2.3108]
[1717526038883,1.871,3824.1,3823.0,2.3276]
[1717526039193,0.7665724,3824.0,3823.0,2.3276]
[1717526039581,2.61551,3823.4,3823.0,2.3276]
[1717526040723,2.61567,3823.2,3822.4,2.3468]
[1717526041822,2.6158,3823.0,3822.4,2.3468]
[1717526043015,2.61596,3822.7,3822.4,2.3468]
[1717526043326,2.61596,3822.7,3822.4,2.58148]
[1717526043509,2.61576,3823.0,3822.4,2.58148]
[1717526045187,2.61556,3823.3,3822.4,2.58148]
[1717526045427,2.61556,3823.3,3822.4,5.19758]
[1717526045832,7.3,3823.5,3822.4,2.58148]
[1717526045990,7.3,3823.5,3822.1,4.94794]
[1717526045991,2.61586,3822.9,3822.1,4.94794]
[1717526051305,2.61601,3822.7,3821.8,5.06596]
[1717526051535,2.61612,3822.5,3821.8,5.06596]
[1717526051691,2.61612,3822.5,3821.8,2.61656]
[1717526051897,2.61612,3822.5,3821.5,4.89893]
[1717526052133,2.61612,3822.5,3821.7,2.6166]
[1717526056306,2.61612,3822.5,3821.9,2.61646]
[1717526057651,2.61612,3822.5,3821.6,3.106563]
[1717526058866,1.871,3822.4,3821.6,2.61667]
[1717526059146,5.10275,3822.3,3821.3,2.61686]
[1717526060118,2.61641,3822.1,3821.3,2.61686]
[1717526060504,2.61641,3822.1,3820.9,2.3572]
[1717526060505,2.61641,3822.1,3821.0,2.61709]
[1717526060705,2.61641,3822.1,3821.1,0.497429]
[1717526061551,2.61655,3821.9,3821.0,2.61709]
[1717526063205,2.61655,3821.9,3821.1,0.05233634]
[1717526063433,7.3,3822.7,3822.0,2.61642]
[1717526064847,2.6158,3823.0,3822.0,2.61642]
[1717526065046,2.61595,3822.8,3822.0,2.61642]
[1717526065362,5.02820341,3822.8,3822.0,2.61642]
[1717526066711,2.61595,3822.8,3822.0,2.61642]
[1717526068177,22.22686412,3823.1,3821.5,2.2609]
[1717526068398,22.22686412,3823.1,3822.2,2.61623]
[1717526068750,2.61586,3822.9,3822.2,2.61623]
[1717526069084,2.61586,3822.9,3821.5,2.2609]
[1717526069085,2.61586,3822.9,3821.9,2.61648]
[1717526069245,2.61586,3822.9,3822.0,0.261648]
[1717526069448,2.61586,3822.9,3821.5,2.2609]
[1717526070171,2.61586,3822.9,3822.1,2.61633]
[1717526071378,2.61586,3822.9,3821.5,2.80249336]
[1717526071379,2.61586,3822.9,3821.8,2.61654]
[1717526072348,2.61598,3822.7,3821.8,2.61654]
[1717526073487,2.61598,3822.7,3821.9,0.261654]
[1717526074442,2.61598,3822.7,3822.0,2.6164]
[1717526074900,2.61577,3823.0,3822.0,2.6164]
[1717526077213,2.61577,3823.0,3822.2,2.61626]
[1717526078036,7.27558412,3823.1,3822.4,2.61609]
[1717526078242,2.4399,3823.2,3822.4,2.61609]
[1717526078546,2.61557,3823.3,3822.6,2.61599]
[1717526079423,2.6157,3823.1,3822.3,2.61617]
[1717526079619,2.6157,3823.1,3822.5,2.61606]
[1717526080129,2.6157,3823.1,3822.2,3.1467214]
[1717526080449,2.4404,3823.0,3822.2,3.1467214]
[1717526081740,2.4404,3823.0,3822.4,2.61612]
[1717526082451,2.4404,3823.0,3822.6,2.616]
[1717526082655,2.6157,3823.1,3822.6,2.616]
[1717526085737,2.61551,3823.4,3822.8,2.61586]
[1717526088221,7.27558412,3823.5,3822.8,2.61586]
[1717526088222,7.27558412,3823.5,3823.0,2.61573]
[1717526089035,2.61555,3823.3,3822.7,2.6159]
[1717526090563,2.61555,3823.3,3822.4,2.61609]
[1717526092758,2.3898,3823.0,3821.9,0.54159336]
[1717526092960,7.27558412,3823.5,3821.7,0.54159336]
[1717526092961,2.51604,3822.6,3821.7,0.54159336]
[1717526093169,2.10998,3822.9,3821.5,0.54159336]
[1717526093170,2.61626,3822.3,3821.5,0.54159336]
[1717526093471,2.61626,3822.3,3821.2,5.11147]
[1717526096786,2.61626,3822.3,3821.5,2.61677]
[1717526096981,2.61626,3822.3,3821.2,2.4945]
[1717526096982,2.61626,3822.3,3821.6,0.261677]
[1717526097188,2.61626,3822.3,3821.2,2.4945]
[1717526097561,2.3898,3822.5,3821.3,2.6169]
[1717526099048,2.6162,3822.4,3821.3,2.6169]
[1717526099246,2.61634,3822.2,3821.3,2.6169]
[1717526100385,2.61649,3822.0,3821.2,2.4945]
[1717526100586,2.61649,3822.0,3821.3,0.511159]
[1717526100742,2.61661,3821.8,3821.3,0.511159]
[1717526100948,2.61661,3821.8,3821.2,2.4945]
[1717526101155,2.61661,3821.8,3820.8,2.4076]
[1717526101708,2.61661,3821.8,3820.9,2.61718]
[1717526103997,9.89195412,3822.1,3821.3,2.61686]
[1717526104204,9.89195412,3822.1,3821.4,2.716986]
[1717526104569,7.27558412,3822.1,3821.5,2.61676]
[1717526105896,7.27558412,3822.1,3821.4,2.716986]
[1717526105897,7.27558412,3822.1,3821.7,2.61659]
[1717526106270,7.27558412,3822.1,3822.0,2.4138]
[1717526107255,7.27558412,3822.1,3821.7,2.485]
[1717526107458,7.27558412,3822.1,3821.8,0.510168]
[1717526108660,7.27558412,3822.1,3821.8,3.126698]
[1717526108960,19.57,3822.4,3821.8,3.126698]
[1717526110961,19.57,3822.4,3821.8,0.510168]
[1717526111164,19.57,3822.4,3822.1,2.61631]
[1717526111764,22.043,3822.4,3821.8,2.61654]
[1717526114324,19.57,3822.4,3821.8,2.61654]
[1717526114464,19.57,3822.4,3822.0,2.61639]
[1717526114666,2.61605,3822.6,3822.0,2.61639]
[1717526116788,2.61605,3822.6,3821.7,2.61659]
[1717526118182,2.61605,3822.6,3821.9,2.61647]
[1717526119435,26.84558412,3822.7,3822.1,2.61633]
[1717526120623,2.2569,3822.8,3822.1,2.61633]
[1717526121023,2.61596,3822.7,3821.8,2.61654]
[1717526121936,2.61596,3822.7,3822.0,2.6164]
[1717526123185,2.61612,3822.5,3821.8,0.41331925]
[1717526125323,2.61612,3822.5,3821.9,2.61649]
[1717526128929,4.87283,3822.8,3822.1,2.61632]
[1717526131446,4.87283,3822.8,3822.2,0.0702023]
[1717526131631,4.87283,3822.8,3822.1,2.61632]
[1717526131830,2.2569,3822.8,3822.3,2.61621]
[1717526132550,2.2569,3822.8,3822.1,0.30296392]
[1717526132703,2.2569,3822.8,3822.0,2.61638]
[1717526133104,2.61595,3822.7,3822.1,0.07125603]
[1717526133402,2.61595,3822.7,3822.0,2.61638]
[1717526133817,2.61595,3822.7,3822.1,0.07125603]
[1717526134018,2.61595,3822.7,3822.0,2.61638]
[1717526134241,2.61595,3822.7,3822.1,0.37422596]
[1717526134431,2.61595,3822.7,3822.1,0.30296993]
[1717526135835,2.6161,3822.5,3821.8,0.41331925]
[1717526136143,2.6161,3822.5,3821.9,2.68784925]
[1717526136717,2.4176,3822.4,3821.9,0.07135925]
[1717526137514,2.61623,3822.3,3821.9,0.07135925]
[1717526138740,2.61623,3822.3,3821.7,2.61662]
[1717526139047,2.61623,3822.3,3821.7,2.93244134]
[1717526139214,2.61623,3822.3,3821.8,0.07138824]
[1717526139410,2.61623,3822.3,3821.7,2.93244134]
[1717526139615,2.61623,3822.3,3821.8,0.07138824]